[Event "BLR-ch 1st Stage Men 2020"]
[Site "Minsk"]
[Date "2020.02.01"]
[Round "6.3"]
[White "Siniauski, Artsiom"]
[Black "Podolchenko, Evgeniy"]
[Result "0-1"]
[ECO "B11"]
[WhiteElo "2265"]
[BlackElo "2394"]
[Annotator "NA"]
[PlyCount "126"]
[EventDate "2020.02.01"]
[EventType "swiss"]
[EventCountry "BLR"]
[SourceTitle "playchess.com"]
[Source "ChessBase"]
[SourceQuality "1"]
[TimeControl "40/5400+30:1800+30"]

1. e4 {[%emt 0:00:00]} c6 {[%emt 0:05:14]} 2. Nc3 {[%emt 0:01:02]} d5 {[%emt 0:00:05]} 3. Nf3 {[%emt 0:00:09]} Bg4 {[%emt 0:00:17]} 4. h3 {[%emt 0:00:15]} Bxf3 {[%emt 0:00:13]} 5. Qxf3 {[%emt 0:00:07]} e6 {[%emt 0:00:06]} 6. a3 {[%emt 0:05:58]} Nf6 {[%emt 0:01:38]} 7. d3 {[%emt 0:00:16]} Nbd7 {[%emt 0:00:36]} 8. g3 {[%emt 0:00:48]} Bc5 {[%emt 0:10:49]} 9. Bg2 {[%emt 0:02:14]} Bd4 {[%emt 0:03:28]} 10. Ne2 {[%emt 0:10:39]} Ne5 {[%emt 0:16:12]} 11. Qf4 {[%emt 0:01:06]} Ng6 {[%emt 0:00:30]} 12. Qd2 {[%emt 0:04:03]} Bb6 {[%emt 0:01:47]} 13. O-O {[%emt 0:01:39]} O-O {[%emt 0:00:22]} 14. Kh2 {[%emt 0:02:27]} dxe4 {[%emt 0:05:13]} 15. dxe4 {[%emt 0:01:58]} Qc7 {[%emt 0:00:15]} 16. Qc3 {[%emt 0:05:31]} Rad8 {[%emt 0:05:12]} 17. f4 {[%emt 0:13:35]} Rfe8 {[%emt 0:11:06]} 18. b4 {[%emt 0:06:54]} e5 {[%emt 0:01:19]} 19. Bb2 {[%emt 0:09:12]} exf4 {[%emt 0:02:21]} 20. gxf4 {[%emt 0:00:52]} Nh5 {[%emt 0:09:31]} 21. e5 {[%emt 0:05:37]} Nh4 {[%emt 0:10:45]} 22. Rad1 {[%emt 0:10:11]} Rxd1 {[%emt 0:01:47]} 23. Rxd1 {[%emt 0:00:05]} Nxg2 {[%emt 0:00:38]} 24. Kxg2 {[%emt 0:00:07]} Qc8 {[%emt 0:00:20]} 25. Qf3 {[%emt 0:04:07]} Qf5 {[%emt 0:00:36]} 26. Rd2 {[%emt 0:00:33]} g6 {[%emt 0:01:09]} 27. c4 {[%emt 0:02:17]} Rd8 {[%emt 0:00:26]} 28. Rxd8+ {[%emt 0:02:10]} Bxd8 {[%emt 0:00:02]} 29. Bd4 {[%emt 0:00:25]} Qc2 {[%emt 0:00:24]} 30. f5 {[%emt 0:03:27]} Qxc4 {[%emt 0:01:47]} 31. f6 {[%emt 0:01:19]} Qxe2+ {[%emt 0:02:13]} 32. Qxe2 {[%emt 0:00:04]} Nf4+ {[%emt 0:00:04]} 33. Kf3 {[%emt 0:00:04]} Nxe2 {[%emt 0:00:14]} 34. Kxe2 {[%emt 0:00:04]} Bb6 {[%emt 0:02:20]} 35. Bc3 {[%emt 0:02:29]} Kf8 {[%emt 0:00:14]} 36. Kf3 {[%emt 0:00:32]} Ke8 {[%emt 0:00:22]} 37. Ke4 {[%emt 0:01:33]} Kd7 {[%emt 0:00:13]} 38. Bb2 {[%emt 0:00:19]} Ke6 {[%emt 0:00:09]} 39. Bc3 {[%emt 0:00:05]} Bc7 {[%emt 0:00:21]} 40. Bb2 {[%emt 0:00:00]} b5 {[%emt 0:00:00]} 41. Bc3 {[%emt 0:00:47]} Bb6 {[%emt 0:00:32]} 42. Bb2 {[%emt 0:00:35]} Bg1 {[%emt 0:00:35]} 43. Bc3 {[%emt 0:00:08]} a6 {[%emt 0:00:05]} 44. Bb2 {[%emt 0:00:05]} Bh2 {[%emt 0:00:10]} 45. Bd4 {[%emt 0:00:10]} g5 {[%emt 0:00:10]} 46. Bc3 {[%emt 0:00:20]} Bf4 {[%emt 0:00:14]} 47. Bb2 {[%emt 0:00:28]} h6 {[%emt 0:00:27]} 48. h4 {[%emt 0:01:34]} Bd2 {[%emt 0:00:13]} 49. h5 {[%emt 0:00:07]} Bf4 {[%emt 0:01:24]} 50. Bd4 {[%emt 0:00:16]} Bc1 {[%emt 0:00:43]} 51. Bc5 {[%emt 0:00:08]} Bb2 {[%emt 0:00:25]} 52. Bd6 {[%emt 0:02:54]} g4 {[%emt 0:00:11]} 53. Bf8 {[%emt 0:00:12]} Bxe5 {[%emt 0:00:05]} 54. Bxh6 {[%emt 0:00:05]} Bxf6 {[%emt 0:00:09]} 55. Kf4 {[%emt 0:01:02]} Bb2 {[%emt 0:00:06]} 56. Kxg4 {[%emt 0:00:47]} f5+ {[%emt 0:00:20]} 57. Kh4 {[%emt 0:00:42]} Bxa3 {[%emt 0:00:15]} 58. Bf8 {[%emt 0:07:01]} Kf7 {[%emt 0:01:14]} 59. Bd6 {[%emt 0:01:17]} a5 {[%emt 0:00:10]} 60. Kg5 {[%emt 0:00:15]} a4 {[%emt 0:01:29]} 61. Be5 {[%emt 0:01:02]} Bc1+ {[%emt 0:00:06]} 62. Kxf5 {[%emt 0:01:19]} a3 {[%emt 0:00:05]} 63. h6 {[%emt 0:00:25]} Bxh6 {[%emt 0:00:19]} 0-1

[Event "BLR-ch 1st Stage Men 2020"]
[Site "Minsk"]
[Date "2020.02.01"]
[Round "6.4"]
[White "Pogosian, Manvel"]
[Black "Tsaruk, Maksim"]
[Result "1/2-1/2"]
[ECO "D27"]
[WhiteElo "2383"]
[BlackElo "2316"]
[Annotator "NA"]
[PlyCount "70"]
[EventDate "2020.02.01"]
[EventType "swiss"]
[EventCountry "BLR"]
[SourceTitle "playchess.com"]
[Source "ChessBase"]
[SourceQuality "1"]
[TimeControl "40/5400+30:1800+30"]

1. d4 {[%emt 0:00:00]} d5 {[%emt 0:00:00]} 2. c4 {[%emt 0:01:43]} dxc4 {[%emt 0:00:04]} 3. e3 {[%emt 0:02:19]} Nf6 {[%emt 0:00:16]} 4. Bxc4 {[%emt 0:00:15]} e6 {[%emt 0:00:11]} 5. Nf3 {[%emt 0:00:16]} a6 {[%emt 0:00:23]} 6. O-O {[%emt 0:02:24]} c5 {[%emt 0:00:09]} 7. a4 {[%emt 0:02:49]} Nc6 {[%emt 0:01:19]} 8. Qe2 {[%emt 0:01:10]} cxd4 {[%emt 0:00:40]} 9. Rd1 {[%emt 0:00:27]} Be7 {[%emt 0:00:07]} 10. exd4 {[%emt 0:00:13]} O-O {[%emt 0:00:09]} 11. Nc3 {[%emt 0:00:32]} Nb4 {[%emt 0:04:37]} 12. Bg5 {[%emt 0:05:04]} Bd7 {[%emt 0:04:39]} 13. Bb3 {[%emt 0:06:37]} Bc6 {[%emt 0:04:51]} 14. d5 {[%emt 0:06:25]} Nbxd5 {[%emt 0:24:40]} 15. Nxd5 {[%emt 0:02:01]} Bxd5 {[%emt 0:00:42]} 16. Bxd5 {[%emt 0:02:25]} exd5 {[%emt 0:00:37]} 17. Nd4 {[%emt 0:00:14]} g6 {[%emt 0:04:02]} 18. Qe5 {[%emt 0:33:29]} Re8 {[%emt 0:07:08]} 19. Rac1 {[%emt 0:10:17]} Bd6 {[%emt 0:19:35]} 20. Qxf6 {[%emt 0:00:29]} Be7 {[%emt 0:00:05]} 21. Qf3 {[%emt 0:04:45]} Bxg5 {[%emt 0:00:05]} 22. Rc3 {[%emt 0:02:07]} Qb6 {[%emt 0:07:26]} 23. Nb3 {[%emt 0:03:00]} Rad8 {[%emt 0:12:06]} 24. g3 {[%emt 0:01:48]} Qf6 {[%emt 0:02:55]} 25. h4 {[%emt 0:02:48]} Qxf3 {[%emt 0:00:03]} 26. Rxf3 {[%emt 0:00:02]} Be7 {[%emt 0:01:19]} 27. Rfd3 {[%emt 0:02:53]} Bf6 {[%emt 0:00:23]} 28. Nc5 {[%emt 0:01:18]} b5 {[%emt 0:03:30]} 29. Nxa6 {[%emt 0:02:05]} bxa4 {[%emt 0:00:08]} 30. Nc7 {[%emt 0:00:22]} Re2 {[%emt 0:02:15]} 31. Nxd5 {[%emt 0:00:22]} Kg7 {[%emt 0:00:08]} 32. Nxf6 {[%emt 0:01:27]} Rxd3 {[%emt 0:00:04]} 33. Rxd3 {[%emt 0:00:21]} Kxf6 {[%emt 0:00:04]} 34. Ra3 {[%emt 0:00:09]} Rxb2 {[%emt 0:00:05]} 35. Rxa4 {[%emt 0:00:01]} Ke5 {[%emt 0:02:45]} 1/2-1/2

[Event "BLR-ch 1st Stage Men 2020"]
[Site "Minsk"]
[Date "2020.02.01"]
[Round "6.6"]
[White "Smirnov, Valerij"]
[Black "Teterev, Vitaly"]
[Result "1-0"]
[ECO "E61"]
[WhiteElo "2261"]
[BlackElo "2476"]
[Annotator "ChessBase"]
[PlyCount "133"]
[EventDate "2020.02.01"]
[EventType "swiss"]
[EventCountry "BLR"]
[SourceTitle "playchess.com"]
[Source "ChessBase"]
[SourceQuality "1"]
[TimeControl "40/5400+30:1800+30"]

1. d4 {[%emt 0:00:00]} Nf6 {[%emt 0:00:00]} 2. c4 {[%emt 0:00:00]} g6 {[%emt 0:00:00]} 3. Nc3 {[%emt 0:00:01]} Bg7 {[%emt 0:00:00]} 4. Nf3 {[%emt 0:00:14]} d6 {[%emt 0:00:08]} 5. Bg5 {[%emt 0:00:19]} h6 {[%emt 0:00:45]} 6. Bh4 {[%emt 0:00:17]} g5 {[%emt 0:00:27]} 7. Bg3 {[%emt 0:00:13]} Nh5 {[%emt 0:00:10]} 8. e3 {[%emt 0:00:29]} c5 {[%emt 0:04:02]} 9. Be2 {[%emt 0:07:55]} Nxg3 {[%emt 0:06:10]} 10. hxg3 {[%emt 0:00:50]} Qa5 {[%emt 0:18:13]} 11. O-O {[%emt 0:05:50]} O-O {[%emt 0:04:59]} 12. a3 {[%emt 0:00:30]} Bg4 {[%emt 0:05:46]} 13. b4 {[%emt 0:05:02]} Qd8 {[%emt 0:03:30]} 14. Rc1 {[%emt 0:05:16]} b6 {[%emt 0:12:04]} 15. Nh2 {[%emt 0:08:17]} Bxe2 {[%emt 0:02:18]} 16. Qxe2 {[%emt 0:00:11]} cxd4 {[%emt 0:10:18]} 17. exd4 {[%emt 0:00:20]} Nc6 {[%emt 0:00:30]} 18. d5 {[%emt 0:00:25]} Nd4 {[%emt 0:00:05]} 19. Qd3 {[%emt 0:01:21]} e5 {[%emt 0:03:00]} 20. dxe6 {[%emt 0:10:13]} fxe6 {[%emt 0:00:10]} 21. Nf3 {[%emt 0:00:09]} Nxf3+ {[%emt 0:02:56]} 22. gxf3 {[%emt 0:00:31]} Qd7 {[%emt 0:01:36]} 23. Rfd1 {[%emt 0:06:25]} Rad8 {[%emt 0:02:52]} 24. Ne4 {[%emt 0:01:36]} d5 {[%emt 0:01:17]} 25. cxd5 {[%emt 0:16:29]} exd5 {[%emt 0:02:43]} 26. Nc3 {[%emt 0:03:22]} d4 {[%emt 0:00:38]} 27. Ne4 {[%emt 0:00:46]} Rf7 {[%emt 0:00:20]} 28. Kg2 {[%emt 0:04:55]} Rdf8 {[%emt 0:01:33]} 29. Qb3 {[%emt 0:01:06]} Kh8 {[%emt 0:02:58]} 30. Rd3 {[%emt 0:01:43]} Rd8 {[%emt 0:03:12]} 31. b5 {[%emt 0:05:43]} Kh7 {[%emt 0:01:24]} 32. a4 {[%emt 0:00:52]} Re7 {[%emt 0:02:30]} 33. g4 {[%emt 0:04:04]} Rxe4 {[%emt 0:00:47]} 34. fxe4 {[%emt 0:00:11]} Qxg4+ {[%emt 0:00:04]} 35. Rg3 {[%emt 0:00:54]} Qxe4+ {[%emt 0:00:06]} 36. Qf3 {[%emt 0:00:08]} Qe5 {[%emt 0:02:38]} 37. Qd3+ {[%emt 0:02:04]} Kh8 {[%emt 0:00:06]} 38. Rf3 {[%emt 0:00:25]} Qd5 {[%emt 0:02:15]} 39. Kg1 {[%emt 0:00:10]} Qd7 {[%emt 0:05:15]} 40. Rf5 {[%emt 0:00:00]} Re8 {[%emt 0:00:00]} 41. Qf3 {[%emt 0:04:34]} g4 {[%emt 0:12:55]} 42. Qxg4 {[%emt 0:16:14]} Rd8 {[%emt 0:08:58]} 43. Rf4 {[%emt 0:21:26]} d3 {[%emt 0:03:51]} 44. Qxd7 {[%emt 0:00:00]} Rxd7 {[%emt 0:00:01]} 45. Rd1 {[%emt 0:00:00]} d2 {[%emt 0:00:24]} 46. Rc4 {[%emt 0:00:00]} Bb2 {[%emt 0:01:19]} 47. Kf1 {[%emt 0:00:00]} Bc1 {[%emt 0:00:24]} 48. f3 {[%emt 0:00:00]} Kg7 {[%emt 0:02:37]} 49. Ke2 {[%emt 0:00:00]} Kg6 {[%emt 0:01:11]} 50. Rg1+ {[%emt 0:00:00]} Kf5 {[%emt 0:01:15]} 51. Rh1 {[%emt 0:00:00]} Ba3 {[%emt 0:01:47]} 52. Kd1 {[%emt 0:00:00]} Bc5 {[%emt 0:00:17]} 53. Rxh6 {[%emt 0:00:00]} Be3 {[%emt 0:00:20]} 54. Rh5+ {[%emt 0:00:00]} Kf6 {[%emt 0:02:19]} 55. Rc6+ {[%emt 0:00:00]} Kg7 {[%emt 0:00:00]} 56. Re5 {[%emt 0:00:00]} Bc5 {[%emt 0:01:24]} 57. Rexc5 {[%emt 0:00:57]} bxc5 {[%emt 0:00:11]} 58. Rxc5 {[%emt 0:00:06]} Kf6 {[%emt 0:00:20]} 59. a5 {[%emt 0:00:22]} Ke6 {[%emt 0:01:19]} 60. b6 {[%emt 0:00:21]} axb6 {[%emt 0:00:13]} 61. axb6 {[%emt 0:00:06]} Kd6 {[%emt 0:00:58]} 62. Rb5 {[%emt 0:00:14]} Kc6 {[%emt 0:00:40]} 63. b7 {[%emt 0:00:16]} Rxb7 {[%emt 0:00:11]} 64. Rxb7 Kxb7 {[%emt 0:00:00]} 65. Kxd2 {[%emt 0:00:17]} Kc6 {[%emt 0:00:01]} 66. Ke3 {[%emt 0:00:08]} Kd5 {[%emt 0:00:02]} 67. Kf4 {[%emt 0:00:08]} 1-0

[Event "BLR-ch 1st Stage Men 2020"]
[Site "Minsk"]
[Date "2020.02.01"]
[Round "6.7"]
[White "Cherepov, Alexej"]
[Black "Meribanov, Vitaly"]
[Result "1/2-1/2"]
[ECO "A31"]
[WhiteElo "2184"]
[BlackElo "2417"]
[Annotator "NA"]
[PlyCount "152"]
[EventDate "2020.02.01"]
[EventType "swiss"]
[EventCountry "BLR"]
[SourceTitle "playchess.com"]
[Source "ChessBase"]
[SourceQuality "1"]
[TimeControl "40/5400+30:1800+30"]

1. d4 {[%emt 0:00:00]} Nf6 {[%emt 0:03:10]} 2. c4 {[%emt 0:00:00]} c5 {[%emt 0:00:04]} 3. Nf3 {[%emt 0:00:00]} cxd4 {[%emt 0:00:04]} 4. Nxd4 {[%emt 0:00:00]} e5 {[%emt 0:00:03]} 5. Nc2 {[%emt 0:00:19]} d5 {[%emt 0:01:47]} 6. cxd5 {[%emt 0:00:08]} Qxd5 {[%emt 0:00:17]} 7. Qxd5 {[%emt 0:00:10]} Nxd5 {[%emt 0:00:01]} 8. e4 {[%emt 0:00:48]} Nb4 {[%emt 0:01:32]} 9. Nxb4 {[%emt 0:01:03]} Bxb4+ {[%emt 0:02:11]} 10. Bd2 {[%emt 0:00:03]} Nc6 {[%emt 0:02:20]} 11. Bb5 {[%emt 0:00:28]} Bd7 {[%emt 0:00:45]} 12. Bxc6 {[%emt 0:00:37]} Bxd2+ {[%emt 0:00:05]} 13. Kxd2 {[%emt 0:00:06]} Bxc6 {[%emt 0:00:06]} 14. Nc3 {[%emt 0:00:19]} O-O-O+ {[%emt 0:02:13]} 15. Ke3 {[%emt 0:00:13]} Rd4 {[%emt 0:00:40]} 16. Rhd1 {[%emt 0:02:20]} Rhd8 {[%emt 0:00:15]} 17. Rac1 {[%emt 0:01:22]} Kb8 {[%emt 0:01:18]} 18. f3 {[%emt 0:00:58]} Bb5 {[%emt 0:15:09]} 19. Kf2 {[%emt 0:24:51]} Bc4 {[%emt 0:04:51]} 20. b3 {[%emt 0:02:49]} Be6 {[%emt 0:00:04]} 21. Rxd4 {[%emt 0:01:08]} Rxd4 {[%emt 0:00:28]} 22. Rd1 {[%emt 0:02:49]} Rxd1 23. Nxd1 {[%emt 0:00:01]} Kc7 {[%emt 0:00:17]} 24. Ke3 {[%emt 0:00:18]} b5 {[%emt 0:03:42]} 25. Nc3 {[%emt 0:09:18]} b4 {[%emt 0:00:40]} 26. Na4 {[%emt 0:00:06]} Kd6 {[%emt 0:03:18]} 27. Nb2 {[%emt 0:00:32]} f6 {[%emt 0:00:11]} 28. h4 {[%emt 0:05:18]} Bd7 {[%emt 0:02:40]} 29. Nc4+ {[%emt 0:00:49]} Kc5 {[%emt 0:00:24]} 30. Nb2 {[%emt 0:00:04]} a5 {[%emt 0:00:27]} 31. Nd3+ {[%emt 0:00:45]} Kd6 {[%emt 0:00:16]} 32. Nb2 {[%emt 0:00:29]} Bb5 {[%emt 0:00:22]} 33. Nd3 {[%emt 0:00:55]} g6 {[%emt 0:00:09]} 34. g3 {[%emt 0:03:39]} Bd7 {[%emt 0:00:35]} 35. Kd2 {[%emt 0:02:46]} h6 {[%emt 0:00:35]} 36. Ke3 {[%emt 0:00:46]} Be6 {[%emt 0:00:27]} 37. Kd2 {[%emt 0:02:00]} f5 {[%emt 0:01:16]} 38. Ke3 {[%emt 0:03:09]} g5 {[%emt 0:07:29]} 39. hxg5 {[%emt 0:04:29]} hxg5 {[%emt 0:01:26]} 40. Nb2 {[%emt 0:00:00]} f4+ {[%emt 0:00:00]} 41. gxf4 {[%emt 0:19:03]} gxf4+ {[%emt 0:01:44]} 42. Kd3 {[%emt 0:02:50]} Kc5 {[%emt 0:00:47]} 43. Na4+ {[%emt 0:00:04]} Kc6 {[%emt 0:01:24]} 44. Ke2 {[%emt 0:01:36]} Bc8 {[%emt 0:00:59]} 45. Kd2 {[%emt 0:02:01]} Ba6 {[%emt 0:00:04]} 46. Ke1 {[%emt 0:02:02]} Bd3 {[%emt 0:00:28]} 47. Kd2 {[%emt 0:00:18]} Bb5 {[%emt 0:01:17]} 48. Ke1 {[%emt 0:02:19]} Kc7 {[%emt 0:12:31]} 49. Kd2 {[%emt 0:00:47]} Kd6 {[%emt 0:00:06]} 50. Ke1 {[%emt 0:00:54]} Ke7 {[%emt 0:02:28]} 51. Nb2 {[%emt 0:04:43]} Kf6 {[%emt 0:00:55]} 52. Kf2 {[%emt 0:03:12]} Kg5 {[%emt 0:00:45]} 53. Kg2 {[%emt 0:03:04]} Kh4 {[%emt 0:03:17]} 54. Kh2 {[%emt 0:05:46]} Kh5 {[%emt 0:00:05]} 55. Kg2 {[%emt 0:00:19]} Kg5 {[%emt 0:00:06]} 56. Kf2 {[%emt 0:00:32]} Kg6 {[%emt 0:00:35]} 57. Ke1 {[%emt 0:00:34]} Kf6 {[%emt 0:00:04]} 58. Kf2 {[%emt 0:00:09]} Ke6 {[%emt 0:00:26]} 59. Ke1 {[%emt 0:00:24]} Ke7 {[%emt 0:00:02]} 60. Kd2 {[%emt 0:01:30]} Kd6 {[%emt 0:01:15]} 61. Na4 {[%emt 0:00:38]} Be8 {[%emt 0:01:41]} 62. Kd1 {[%emt 0:02:26]} Ke7 {[%emt 0:00:37]} 63. Ke2 {[%emt 0:00:54]} Bb5+ {[%emt 0:00:10]} 64. Ke1 {[%emt 0:03:48]} Ke6 {[%emt 0:00:13]} 65. Nb2 {[%emt 0:00:29]} Kf6 {[%emt 0:00:44]} 66. Kf2 {[%emt 0:00:23]} Kg5 {[%emt 0:00:13]} 67. Kg2 {[%emt 0:00:11]} Kh4 {[%emt 0:00:05]} 68. Kh2 {[%emt 0:00:20]} Kg5 {[%emt 0:05:17]} 69. Kg2 {[%emt 0:00:14]} Kf6 {[%emt 0:00:01]} 70. Kf2 {[%emt 0:00:20]} Ke7 {[%emt 0:00:02]} 71. Ke1 {[%emt 0:00:14]} Kd7 {[%emt 0:00:32]} 72. Kd2 {[%emt 0:00:21]} Kd6 {[%emt 0:00:11]} 73. Na4 {[%emt 0:00:18]} Kc6 {[%emt 0:00:03]} 74. Ke1 {[%emt 0:00:19]} Bd3 {[%emt 0:02:03]} 75. Kd2 {[%emt 0:00:09]} Bb1 {[%emt 0:00:42]} 76. Kc1 {[%emt 0:00:14]} Bd3 {[%emt 0:01:50]} 1/2-1/2

[Event "BLR-ch 1st Stage Men 2020"]
[Site "Minsk"]
[Date "2020.02.01"]
[Round "7.1"]
[White "Podolchenko, Evgeniy"]
[Black "Zarubitski, Viachaslau"]
[Result "1/2-1/2"]
[ECO "D17"]
[WhiteElo "2394"]
[BlackElo "2451"]
[Annotator "ChessBase"]
[PlyCount "74"]
[EventDate "2020.02.01"]
[EventType "swiss"]
[EventCountry "BLR"]
[SourceTitle "playchess.com"]
[Source "ChessBase"]
[SourceQuality "1"]
[TimeControl "40/5400+30:1800+30"]

1. d4 {[%emt 0:01:37]} d5 {[%emt 0:00:00]} 2. c4 {[%emt 0:00:13]} c6 {[%emt 0:00:00]} 3. Nf3 {[%emt 0:00:08]} Nf6 {[%emt 0:00:00]} 4. Nc3 {[%emt 0:00:06]} dxc4 {[%emt 0:00:00]} 5. a4 {[%emt 0:00:06]} Bf5 {[%emt 0:00:04]} 6. Ne5 {[%emt 0:00:13]} Nbd7 {[%emt 0:00:05]} 7. Nxc4 {[%emt 0:00:06]} Qc7 {[%emt 0:00:08]} 8. Qd2 {[%emt 0:00:10]} g6 {[%emt 0:00:44]} 9. Qf4 {[%emt 0:00:34]} Qxf4 {[%emt 0:02:50]} 10. Bxf4 {[%emt 0:00:12]} Bg7 {[%emt 0:08:35]} 11. e3 {[%emt 0:00:27]} Nh5 {[%emt 0:06:11]} 12. Bg5 {[%emt 0:00:10]} h6 {[%emt 0:00:43]} 13. Bh4 {[%emt 0:00:07]} g5 {[%emt 0:00:16]} 14. Be2 {[%emt 0:00:13]} Ndf6 {[%emt 0:13:06]} 15. Bg3 {[%emt 0:01:57]} Nxg3 {[%emt 0:00:07]} 16. hxg3 {[%emt 0:00:09]} O-O {[%emt 0:07:02]} 17. O-O {[%emt 0:06:42]} Rac8 {[%emt 0:02:15]} 18. Rac1 {[%emt 0:07:20]} Rfd8 {[%emt 0:14:49]} 19. Rfd1 {[%emt 0:14:43]} Be6 {[%emt 0:14:54]} 20. b4 {[%emt 0:11:47]} Nd5 {[%emt 0:00:33]} 21. Na5 {[%emt 0:03:53]} b6 {[%emt 0:02:38]} 22. Nxd5 {[%emt 0:00:07]} Bxd5 {[%emt 0:00:09]} 23. Nc4 {[%emt 0:00:17]} Bxc4 {[%emt 0:12:00]} 24. Bxc4 {[%emt 0:06:43]} e5 {[%emt 0:01:10]} 25. Ba6 {[%emt 0:12:04]} Rb8 {[%emt 0:00:29]} 26. Rxc6 {[%emt 0:03:29]} exd4 {[%emt 0:00:09]} 27. exd4 {[%emt 0:00:40]} Bxd4 {[%emt 0:09:46]} 28. Kf1 {[%emt 0:00:34]} Kg7 {[%emt 0:02:08]} 29. Rc7 {[%emt 0:01:48]} Be5 {[%emt 0:00:31]} 30. Rcd7 {[%emt 0:00:48]} Rxd7 {[%emt 0:00:26]} 31. Rxd7 {[%emt 0:00:02]} Bc3 {[%emt 0:00:34]} 32. Bc4 {[%emt 0:00:55]} Bxb4 {[%emt 0:00:27]} 33. Rxf7+ {[%emt 0:01:09]} Kg6 {[%emt 0:00:02]} 34. Rd7 {[%emt 0:01:25]} a5 {[%emt 0:01:08]} 35. g4 {[%emt 0:01:31]} Bc5 {[%emt 0:01:50]} 36. Ke2 {[%emt 0:10:35]} Re8+ {[%emt 0:00:22]} 37. Kd2 {[%emt 0:00:14]} Re7 {[%emt 0:00:29]} 1/2-1/2

[Event "BLR-ch 1st Stage Men 2020"]
[Site "Minsk"]
[Date "2020.02.01"]
[Round "7.3"]
[White "Tsaruk, Maksim"]
[Black "Lazavik, Denis"]
[Result "1/2-1/2"]
[ECO "C76"]
[WhiteElo "2316"]
[BlackElo "2411"]
[Annotator "NA"]
[PlyCount "60"]
[EventDate "2020.02.01"]
[EventType "swiss"]
[EventCountry "BLR"]
[SourceTitle "playchess.com"]
[Source "ChessBase"]
[SourceQuality "1"]
[TimeControl "40/5400+30:1800+30"]

1. e4 {[%emt 0:00:00]} e5 {[%emt 0:00:00]} 2. Nf3 {[%emt 0:00:00]} Nc6 {[%emt 0:00:01]} 3. Bb5 {[%emt 0:00:00]} a6 {[%emt 0:00:15]} 4. Ba4 {[%emt 0:00:00]} d6 {[%emt 0:00:34]} 5. O-O {[%emt 0:07:49]} Bd7 {[%emt 0:00:39]} 6. c3 {[%emt 0:00:38]} g6 {[%emt 0:01:25]} 7. d4 {[%emt 0:00:17]} Bg7 {[%emt 0:01:29]} 8. d5 {[%emt 0:09:00]} Nce7 {[%emt 0:01:07]} 9. Bxd7+ {[%emt 0:00:24] C76: Ruy Lopez: Deferred Steinitz: 5 c3 Bd7 6 d4 g6} Qxd7 {[%emt 0:00:10]} 10. Be3 {[%emt 0:00:03]} Nf6 {[%emt 0:04:04]} 11. Nfd2 {[%emt 0:02:03]} Ng4 {[%emt 0:01:54]} 12. Qe2 {[%emt 0:00:17] [#]} f5 $146 {[%emt 0:11:48]} ({Predecessor:} 12... Nxe3 13. Qxe3 h5 14. c4 Bh6 15. Qe2 Qg4 16. f3 Qg5 17. Re1 f5 18. Nf1 O-O {0-1 (43) Dudas,E (2227)-Srebrnic,A (2243) Ruzomberok 2014}) 13. f3 {[%emt 0:00:53]} Nxe3 {[%emt 0:02:11]} 14. Qxe3 {[%emt 0:00:03]} h5 {[%emt 0:06:21]} 15. c4 {[%emt 0:02:43]} Bh6 {[%emt 0:01:19]} 16. Qd3 {[%emt 0:05:27]} c5 {[%emt 0:10:58]} 17. Nc3 {[%emt 0:09:25]} b5 {[%emt 0:09:17]} 18. Rf2 {[%emt 0:09:54]} b4 {[%emt 0:11:16]} 19. Ne2 {[%emt 0:00:06]} Bxd2 {[%emt 0:01:24]} 20. Qxd2 {[%emt 0:00:03]} O-O {[%emt 0:00:15]} 21. Qg5 {[%emt 0:07:11]} fxe4 {[%emt 0:02:37]} 22. fxe4 {[%emt 0:00:06]} Rxf2 {[%emt 0:00:13]} 23. Kxf2 $11 {[%emt 0:00:04]} Rf8+ {[%emt 0:00:23]} 24. Kg1 {[%emt 0:26:00]} Rf7 {[%emt 0:01:46]} 25. Ng3 {[%emt 0:05:06]} Kh7 {[%emt 0:01:23]} 26. Rf1 {[%emt 0:03:28]} Rxf1+ {[%emt 0:01:15]} 27. Nxf1 {[%emt 0:00:03]} Ng8 {[%emt 0:00:24]} 28. b3 {[%emt 0:00:18]} Qe7 {[%emt 0:00:52]} 29. Qxe7+ {[%emt 0:05:54]} Nxe7 {[%emt 0:00:06]} 30. Kf2 {[%emt 0:00:11]} g5 {[%emt 0:00:49]} 1/2-1/2

[Event "BLR-ch 1st Stage Men 2020"]
[Site "Minsk"]
[Date "2020.02.01"]
[Round "7.4"]
[White "Olhovik, Andrei"]
[Black "Pogosian, Manvel"]
[Result "0-1"]
[ECO "A32"]
[WhiteElo "2311"]
[BlackElo "2383"]
[Annotator "NA"]
[PlyCount "74"]
[EventDate "2020.02.01"]
[EventType "swiss"]
[EventCountry "BLR"]
[SourceTitle "playchess.com"]
[Source "ChessBase"]
[SourceQuality "1"]
[TimeControl "40/5400+30:1800+30"]

1. d4 {[%emt 0:04:43]} Nf6 {[%emt 0:00:14]} 2. c4 {[%emt 0:00:20]} e6 {[%emt 0:01:02]} 3. Nc3 {[%emt 0:00:09]} c5 {[%emt 0:01:53]} 4. Nf3 {[%emt 0:00:28]} cxd4 {[%emt 0:02:08]} 5. Nxd4 {[%emt 0:00:06]} Bb4 {[%emt 0:01:30]} 6. Bd2 {[%emt 0:02:16]} Nc6 {[%emt 0:05:07]} 7. Nc2 {[%emt 0:09:28]} Bc5 {[%emt 0:04:47]} 8. Be3 {[%emt 0:00:35]} Bxe3 {[%emt 0:09:08]} 9. Nxe3 {[%emt 0:00:21]} O-O {[%emt 0:00:18]} 10. g3 {[%emt 0:01:07]} d5 {[%emt 0:16:32]} 11. cxd5 {[%emt 0:00:18]} exd5 {[%emt 0:00:18]} 12. Nexd5 {[%emt 0:01:06]} Nxd5 {[%emt 0:01:36]} 13. Qxd5 {[%emt 0:01:05]} Qb6 {[%emt 0:02:59]} 14. Qb3 {[%emt 0:53:41]} Qxb3 {[%emt 0:13:34]} 15. axb3 {[%emt 0:00:04]} Nd4 {[%emt 0:00:30]} 16. Rd1 $11 {[%emt 0:00:17]} Rd8 {[%emt 0:03:58]} 17. Rd2 {[%emt 0:02:18]} Be6 {[%emt 0:10:35]} 18. Bg2 {[%emt 0:00:15]} Nxb3 {[%emt 0:02:43]} 19. Rxd8+ {[%emt 0:00:29]} Rxd8 {[%emt 0:00:01]} 20. Bxb7 {[%emt 0:14:19]} Rd2 {[%emt 0:02:18]} 21. O-O {[%emt 0:02:08]} Rxb2 {[%emt 0:00:06]} 22. Rd1 {[%emt 0:00:30]} Kf8 {[%emt 0:00:56]} 23. Rd8+ {[%emt 0:03:01]} Ke7 {[%emt 0:00:05]} 24. Ra8 {[%emt 0:00:04]} Rc2 {[%emt 0:04:05]} 25. Nd5+ {[%emt 0:00:43]} Kd6 {[%emt 0:00:29]} 26. Rd8+ {[%emt 0:00:19]} Kc5 {[%emt 0:00:21]} 27. Nf4 {[%emt 0:00:06]} Bc4 {[%emt 0:06:47]} 28. Be4 {[%emt 0:01:49]} Rc1+ {[%emt 0:00:48]} 29. Kg2 {[%emt 0:00:05]} a5 {[%emt 0:00:42]} 30. Rc8+ {[%emt 0:01:55]} Kd4 {[%emt 0:01:47]} 31. Bf3 {[%emt 0:00:27]} g5 {[%emt 0:01:33]} 32. Rd8+ {[%emt 0:00:49]} Ke5 {[%emt 0:02:26]} 33. Nd5 {[%emt 0:00:14]} g4 {[%emt 0:01:48]} 34. Re8+ {[%emt 0:00:12]} Kd4 {[%emt 0:01:47]} 35. e3+ {[%emt 0:00:31]} Kd3 {[%emt 0:01:20]} 36. Nf4+ {[%emt 0:00:09]} Kc2 {[%emt 0:00:12]} 37. Bxg4 {[%emt 0:00:27]} Bd3 {[%emt 0:02:07]} 0-1